Cogmind - Beta 10.2 @@@ ROGUE MODE // 2021.11.15 @ 13:36:39 Player: tangiers Result: Destroyed by as-70759 with Assembled F-torch Performance ------------- Evolutions (0) 0 Regions Visited (2) 400 Robots Destroyed (27) 135 Value Destroyed (513) 513 Prototype IDs (4) 80 Alien Tech Used (0) 0 Bonus (0) 0 TOTAL SCORE: 1128 Bonus ------- None Cogmind --------- Core Integrity 0/250 Matter 258/300 Energy 250/250 System Corruption 0% Temperature Cool (20) Movement Rolling (100) Ox1 Location -10/Mines Parts ------- > --- POWER (1) -------- Ion Engine > --- PROPULSION (2) --- Wheel Compact Wheel > --- UTILITY (2) ------ Improved Heat Sink High-capacity Storage Unit > --- WEAPON (2) ------- Grenade Launcher Rocket Launcher > --- INVENTORY (12) --- VTOL Module VTOL Module VTOL Module VTOL Module High-capacity Battery (400) High-capacity Battery (400) High-capacity Matter Pod (200) High-capacity Matter Pod (66) Light EM Pulse Cannon Light EM Pulse Cannon Grenade Launcher Mining Laser Peak State ------------ > --- POWER ------------ Light Ion Engine > --- PROPULSION ------- Light Treads Wheel > --- UTILITY ---------- Improved Heat Sink High-capacity Storage Unit > --- WEAPON ----------- Light EM Pulse Cannon Light EM Pulse Cannon > --- INVENTORY -------- Light Ion Engine Light Treads Light Treads Medium Storage Unit Large Storage Unit High-capacity Battery High-capacity Matter Pod Small Laser Light Assault Rifle Light Cannon Mining Laser [Rating: 12] Favorites ----------- Power Light Ion Engine Engine Light Ion Engine Propulsion Light Treads Treads Light Treads Leg Aluminum Leg Wheel Wheel Utility High-capacity Storage Unit Device Improved Heat Sink Storage High-capacity Storage Unit Weapon Light EM Pulse Cannon Energy Gun Small Laser Energy Cannon Light EM Pulse Cannon Ballistic Gun Light Assault Rifle Ballistic Cannon Light Cannon Launcher Grenade Launcher Special Weapon Mining Laser Build | -11 -10 -10 ------- Run | Scr Mat Min Slots Evolved . | . . . Power . | . . . Propulsion . | . . . Utility . | . . . Weapon . | . . . Parts Attached 42 | 4 25 13 Power 4 | . 2 2 Engine 4 | . 2 2 Core . | . . . Reactor . | . . . Propulsion 13 | 2 7 4 Treads 6 | 1 5 . Leg . | . . . Wheel 7 | 1 2 4 Hover . | . . . Flight . | . . . Utility 6 | 2 4 . Device 3 | 2 1 . Storage 3 | . 3 . Processor . | . . . Hackware . | . . . Protection . | . . . Artifact . | . . . Weapon 19 | . 12 7 Energy Gun 1 | . 1 . Energy Cannon 7 | . 3 4 Ballistic Gun 2 | . 2 . Ballistic Cannon 1 | . 1 . Launcher 5 | . 2 3 Special Weapon 3 | . 3 . Impact Weapon . | . . . Slashing Weapon . | . . . Piercing Weapon . | . . . Special Melee Weapon . | . . . Unidentified Prototypes . | . . . Parts Lost 5 | . . 5 Power 1 | . . 1 Propulsion 2 | . . 2 Utility . | . . . Weapon 2 | . . 2 Highest Loss Streak 3 | . . 3 Average Slot Usage (%) 97 | . 99 93 Engine 13 | . 14 13 Treads 17 | . 19 13 Wheel 8 | . 8 10 Device 14 | . 14 14 Storage 14 | . 14 14 Energy Gun 6 | . 8 . Energy Cannon 7 | . 10 . Ballistic Gun 3 | . 4 . Ballistic Cannon 2 | . 2 . Launcher 7 | . . 27 Special Weapon 1 | . 1 . Naked Turns . | . . . Heaviest Build 46 | 10 46 45 Greatest Support 40 | 20 40 40 Greatest Overweight (x) 4 | 3 4 4 Average Overweight (x) 1 | . 1 2 Largest Inventory Capacity 12 | 6 12 12 Average Capacity 9 | 6 9 12 Most Carried 12 | 6 12 12 Average Carried 9 | 5 8 11 Final Capacity 12 | 6 12 12 Final Carried 12 | 6 12 12 Class Distribution -------------------- 96% | Mutant 3% | Scavenger-Mutant Dominant Class ---------------- Mutant | -10/Materials Mutant | -10/Mines Resources | -11 -10 -10 ----------- Run | Scr Mat Min Matter Collected 1318 | 258 458 602 Remotely . | . . . Salvage Created 688 | 151 404 133 Parts 55 | 18 33 4 Haulers Intercepted 2 | . 2 . Recyclers Shooed . | . . . Parts Field Recycled . | . . . Retrieved Matter . | . . . Parts Self-Destructed . | . . . Prevented . | . . . Kills | -11 -10 -10 ------- Run | Scr Mat Min Combat Hostiles Destroyed 29 | . 9 20 Guns 3 | . 3 . Cannons 5 | . 3 2 AOE 21 | . 3 18 Classes Destroyed 9 | 2 5 2 Worker 3 | . 3 . Tunneler 5 | 5 . . Hauler 2 | . 2 . Recycler 1 | 1 . . Watcher 2 | . 2 . Swarmer 6 | . 3 3 Grunt 6 | . 6 . Demolisher 2 | . . 2 Assembled 15 | . . 15 Best Kill Streak 5 | 4 5 5 Combat Bots Only 5 | . 3 5 Max Kills in Single Turn 3 | 1 3 3 Gunslinging . | . . . Exploded 3 | . 2 3 Melee . | . . . Uniques/NPCs Destroyed . | . . . Combat | -11 -10 -10 -------- Run | Scr Mat Min Damage Taken 1279 | . 510 769 Core 251 | . 81 170 Absorbed by Shields . | . . . Core Remaining (%) 100 | 100 . . Volleys Fired 102 | 18 52 32 Largest 2 | 2 2 2 Hottest 112 | 60 112 112 Shots Fired 176 | 36 89 51 Gun 101 | 36 65 . Cannon 24 | . 18 6 Launcher 45 | . . 45 Special 6 | . 6 . Kinetic 53 | 18 35 . Thermal 57 | 18 39 . Explosive 45 | . . 45 Electromagnetic 21 | . 15 6 Robot Hit Streak 13 | 7 13 4 Robot Miss Streak 4 | 3 2 4 Penetration Max . | . . . Secondary Targets . | . . . Shots Hit Robots 93 | 23 56 14 Core Hits 68 | 8 26 34 Critical Hits 1 | . 1 . Critical Kills 1 | . 1 . Critical Parts Destroyed . | . . . Melee Attacks . | . . . Impact . | . . . Slashing . | . . . Piercing . | . . . Sneak Attacks . | . . . Combat Hostiles . | . . . Follow-up Attacks . | . . . Damage Inflicted 2657 | 229 1187 1241 Guns 704 | 229 475 . Cannons 262 | . 204 58 Explosions 1651 | . 485 1166 Melee . | . . . Ramming 40 | . 23 17 Kinetic 307 | 84 223 . Thermal 485 | 145 340 . Explosive 1601 | . 435 1166 Electromagnetic 224 | . 166 58 Impact . | . . . Slashing . | . . . Piercing . | . . . Highest Corruption . | . . . Average Corruption . | . . . Corruption Purged . | . . . Overload Shots . | . . . Overflow Damage 88 | . 82 6 Projectiles 14 | . 14 . Explosions 74 | . 68 6 Melee . | . . . Knockbacks . | . . . Impact . | . . . Kinetic . | . . . Secondary . | . . . Self-Inflicted Damage 226 | . 48 178 Shots 8 | . 1 7 Rammed 11 | . 4 7 Targets Rammed 11 | . 4 7 Kicked . | . . . Crushed . | . . . Highest Temperature 241 | 60 241 9 Average Temperature 58 | 28 72 6 Received Heat Transfer 269 | . 249 20 Siege Activations . | . . . Robots Corrupted . | . . . Combat Hostiles . | . . . Parts Fried . | . . . Impact Corruptions . | . . . Robots Melted . | . . . Combat Hostiles . | . . . Parts Melted . | . . . Heat Transferred 1050 | 325 725 . Parts Sabotaged . | . . . Parts Stolen . | . . . Parts Stripped . | . . . Power Chain Reactions 1 | . 1 . Missiles Intercepted . | . . . Alert | -11 -10 -10 ------- Run | Scr Mat Min Peak Influence 411 | 30 411 292 Initial 127 | . 19 127 Average 164 | 17 162 198 Maximum Alert Level 2 | . 2 1 Low Security (%) 59 | 100 66 31 Level 1 38 | . 30 68 Level 2 2 | . 3 . Level 3 . | . . . Level 4 . | . . . Level 5 . | . . . High Security . | . . . Max Security . | . . . Squads Dispatched 6 | . 6 . Investigation 5 | . 5 . Extermination . | . . . Reinforcement 1 | . 1 . Assault . | . . . Garrison . | . . . Intercept . | . . . Construction Impeded . | . . . Haulers Reinforced . | . . . Stealth | -11 -10 -10 --------- Run | Scr Mat Min Distress Signals 3 | . 3 . Communications Jammed . | . . . Distress Signals . | . . . Times Spotted 49 | . 33 16 Peak Tracking Total 6 | . 6 3 Tactical Retreats 9 | . 9 . Traps | -11 -10 -10 ------- Run | Scr Mat Min Traps Triggered 2 | . 2 . Indirectly . | . . . Trap Hack Attempts . | . . . Triggered . | . . . Disarmed . | . . . Reprogrammed . | . . . Reused . | . . . Traps Extracted . | . . . Installed . | . . . Triggered 2 | . 2 . Machines | -11 -10 -10 ---------- Run | Scr Mat Min Machines Disabled 5 | . 4 1 Max in Single Turn 1 | . 1 1 Machines Sabotaged . | . . . Garrisons Compromised . | . . . Overloaded Fab Kills . | . . . Fab Network Shutdowns . | . . . Hacking | -11 -10 -10 --------- Run | Scr Mat Min Machines Accessed 9 | . 9 . Terminals 6 | . 6 . Fabricators . | . . . Repair Stations 1 | . 1 . Recycling Units 2 | . 2 . Scanalyzers . | . . . Garrison Access . | . . . Total Hacks 32 | . 32 . Successful 20 | . 20 . Failed 11 | . 11 . Catastrophic 1 | . 1 . Database Lockouts 1 | . 1 . Manual 16 | . 16 . Terminals 24 | . 24 . Fabricators . | . . . Repair Stations 6 | . 6 . Recycling Units 2 | . 2 . Scanalyzers . | . . . Garrison Access . | . . . Terminal Hacks 9 | . 9 . Robot Analysis 1 | . 1 . Prototype ID Bank 2 | . 2 . Branch Access Points 1 | . 1 . Emergency Access Points 1 | . 1 . Terminal Index 1 | . 1 . Locate Traps 3 | . 3 . Fabricator Hacks . | . . . Repair Station Hacks 5 | . 5 . Scan Component 3 | . 3 . Repair 2 | . 2 . Recycling Unit Hacks . | . . . Scanalyzer . | . . . Garrison Access Hacks . | . . . Unauthorized Hacks 6 | . 6 . Terminals 4 | . 4 . Track 2 | . 2 . Botnet 1 | . 1 . Operators 1 | . 1 . Fabricators . | . . . Repair Stations . | . . . Recycling Units 2 | . 2 . Tunnel 2 | . 2 . Scanalyzers . | . . . Garrison Access . | . . . Data Cores Recovered . | . . . Used . | . . . Hacking Detections 7 | . 7 . Full Trace Events . | . . . Feedback Events . | . . . Feedback Blocked . | . . . Robot Schematics Acquired . | . . . Robots Built . | . . . Matter . | . . . Time . | . . . Total Robot Build Rating . | . . . Part Schematics Acquired . | . . . Parts Built . | . . . Matter . | . . . Time . | . . . Total Part Build Rating . | . . . Parts Repaired 2 | . 2 . Time 58 | . 58 . Parts Recycled . | . . . Recycled Matter . | . . . Retrieved Matter . | . . . Retrieved Components . | . . . Parts Scanalyzed . | . . . Part Schematics Acquired . | . . . Parts Damaged . | . . . Bothacking | -11 -10 -10 ------------ Run | Scr Mat Min Used RIF Installer . | . . . Robots Hacked . | . . . Non-combat . | . . . Combat . | . . . Robot Hacks Applied . | . . . Relay Couplers Released . | . . . Robots Rewired . | . . . Allies Hacked . | . . . Hacks Repelled . | . . . Allies | -11 -10 -10 -------- Run | Scr Mat Min Total Allies . | . . . Largest Group . | . . . Highest-Rated Group . | . . . Highest-Rated Ally . | . . . Total Orders . | . . . Ally Attacks . | . . . Total Damage . | . . . Kills . | . . . Allies Corrupted . | . . . Allies Melted . | . . . Intel | -11 -10 -10 ------- Run | Scr Mat Min Robot Analysis Total 1 | . 1 . Derelict Logs Recovered 1 | . . 1 Drone Launches . | . . . Drone Recoveries . | . . . Exploration | -11 -10 -10 ------------- Run | Scr Mat Min Turns Passed 2313 | 126 1606 581 Spaces Moved 1236 | 31 869 336 Core 2 | 2 . . Treads 340 | . 254 86 Legs 4 | 4 . . Wheels 890 | 25 615 250 Hover . | . . . Flight . | . . . Fastest Speed 80 | 80 80 100 Average Speed 121 | 91 117 136 Slowest Speed 200 | 200 180 200 Overloaded Moves . | . . . Propulsion Burnouts . | . . . Robots Hopped . | . . . Cave-ins Triggered . | . . . Exploration Rate (%) 53 | 3 91 67 Regions Visited 2 Branch Regions 1 Pre-discovered Areas 2 | . 2 . Known Exits Taken 1 | . 1 . Unknown Exits Taken 1 | 1 . . Scrap Searched 2 | . . 2 Spaces Dug 31 | . 5 26 Terrain Destroyed 266 | . 18 248 Melee . | . . . Projectile 5 | . 5 . AOE 261 | . 13 248 Terrain Rammed . | . . . Walls Destroyed . | . . . Machines Disabled . | . . . Actions | -11 -10 -10 --------- Run | Scr Mat Min Total 1855 | 97 1360 398 Wait 410 | 36 370 4 Move 1234 | 30 868 336 Hop . | . . . Pick Up 24 | 4 19 1 Fast Attach 12 | 1 7 4 Attach 6 | 2 2 2 Detach 2 | . 2 . Swap 24 | 1 16 7 Drop 28 | 5 20 3 Fire 102 | 18 52 32 Melee . | . . . Ram . | . . . Kick . | . . . Crush 11 | . 4 7 Escape Stasis . | . . . Rewire 2 | . . 2 Trap . | . . . Miscellaneous . | . . . Route ------- -11/Scrapyard -10/Materials (discovered 5 exits: [*Mat x3] / *Min x2) -10/Mines (discovered 1 exit: [*Mat]) History --------- Turn | Location | Event 24 | -11/Scrapyard | Discovered new exit (range 2) 127 | -11/Scrapyard | Entered Materials 190 | -10/Materials | Discovered new exit (range 15) 221 | -10/Materials | Identified exit to Mines 223 | -10/Materials | Discovered new exit (range 14) 227 | -10/Materials | Central database locked down 306 | -10/Materials | Build established: Mutant 600 | -10/Materials | Discovered new exit (range 16) 841 | -10/Materials | Discovered new exit (range 15) 1351 | -10/Materials | Repaired Lgt. Treads 1384 | -10/Materials | Repaired Lgt. EM Pulse Cannon 1733 | -10/Materials | Entered Mines 1733 | -10/Mines | Discovered new exit (range 8) 1739 | -10/Mines | Assembled infested the area 1753 | -10/Mines | Core integrity fell below 50% 1783 | -10/Mines | Lost 3 parts (1n2w) 1852 | -10/Mines | Received a Rocket Launcher from a helpful Derelict 1961 | -10/Mines | Core integrity fell below 20% 2140 | -10/Mines | Learned Materials emergency access door positions 2314 | -10/Mines | Destroyed by as-70759 with Assembled F-torch Last Messages --------------- 02145_ Found Signal Interpreter. 02145_ Found 36 Matter. 02146_ Acquired 36 matter. 02146_ Acquired 31 matter. 02169_ Acquired 55 matter. 02170_ Acquired 32 matter. 02172_ Acquired 15 matter. 02175_ Dropped Lgt. Ion Engine. 02223_ as-68852 destroyed. 02234_ Acquired 7 matter. 02236_ Acquired 2 matter. 02239_ Acquired 81 matter. 02243_ Acquired 20 matter. 02245_ Acquired 15 matter. 02249_ Dropped Wheel. 02252_ Acquired 86 matter. 02255_ Dropped Lgt. Treads. 02255_ Acquired Wheel. 02259_ Acquired 29 matter. 02304_ The unstable cave ceiling collapses. Map ----- +----------------------------------------------------+ | ??????????????????## = * # ### #??????????? | | ##???????????????## ! ## ##### #??????????? | | ##??????????????# ### #??## ##?????????? | | ####??###??????# ### ##??# #?????????? | | #### ##?????## ##?# ##??## #?????????? | | #??????## #??####??## ##??????? | | #???##### #????????# #????? | | ## #??## # ##????????# ##??? # | | #### #?## # ##?????????# # ### # | | #??## ### ##???????##### ## | | ##### ## ##?????## # | | ### ##????# ## | | ### #?## # #????# # # | | ??# #??# ### #????## | | ??# #### #?## ###????# # | | ??# ! ] #??# #?????## # # # ## | | ??######! #### ##????# # ### ##? | | ???????# # #????# ####??# #?? | | ???????##### ## #????# #???? #? | | ???????????# ## # # ##???# ###???? | | ?????####### ## ##### ##??? | | ????? """" ## ## ? | | ????? """" # a ## # #??? | | ????? """" # ! ### ###??? | | ????? # #?# ##????? | | ????# ## @ ## ## #??###?????? | | ????########### # # # ######??????????? | | ??????????????### # ## ###??????????????? | | ????????????????## # # ##????????#####??? | | ?????????????????#### # ########## ##?? | | ????????????????????# ## ##? | | ???????????????????### #? | | ??????????????????## # #? | | ??????????????????# ]## | | ??????????????????# # | | ??????????????????## | | ???????????????????# | | ???????????????????# ## | | ???????????????????## r ## ## | | ????????????????????###### ### ### # | | ?????????????????????????####?## ## #### ##?#### | | ???????????????????????????????######??#####?????? | | ?????????????????????????????????????????????????? | | | | | | | | | | | | | | | +----------------------------------------------------+ Best States ------------- Heat Dissipation 39 Energy Generation 10 Energy Capacity 250 Matter Stores 300 Matter Capacity 300 Sight Range 16 Terrain Scan Range 16 Terrain Scan Density 10 Evasion (%) 44 Recoil Reduction 2 Item Schematics ----------------- None Robot Schematics ------------------ None Fabricated ------------ Nothing Alien Tech Used ----------------- None Achievements -------------- None Challenges ------------ None Game ------ Seed UltimateTargetingExtractor Manual? 0 Play Time 00:25:41 Cumulative 306.3 hours Start 2021.11.15 @ 13:10:34 End 2021.11.15 @ 13:36:39 Sessions 1 Manual Loads 0 Difficulty Rogue Special Mode None Game No. 226 Rogue 226 Adventurer 0 Explorer 0 Win Type - Total 6 Types 5/0/1/0/0/0/0/0/0 Lore% 53 Gallery% 76 Achievement% 61 Wizard Run 0 Options --------- ASCII 0 Keyboard 0 Movement Numpad Keybinds 0 Fullscreen 2 Font 18/TerminusBold Map View 76x50 Tactical HUD 1 Map Filters NONE Filters NONE Steam 1 RUN: b0499c5d-f98a-4abf-976b-6af6e9a8eb43